bitfinex-derivatives/quotes_BTCF0:USTF0_20241005
["timestamp","ask_amount","ask_price","bid_price","bid_amount"]
[1728160162520,0.0076,61830.0,61829.0,0.064697]
[1728160162725,0.0076,61830.0,61824.0,0.23726561]
[1728160162726,0.0697,61837.0,61831.0,0.064695]
[1728160162928,0.0621,61837.0,61836.0,0.12]
[1728160163428,0.0621,61837.0,61836.0,0.16846897]
[1728160163429,0.0317,61837.0,61836.0,0.16846897]
[1728160163930,0.0317,61837.0,61836.0,0.12]
[1728160164632,0.0327,61837.0,61836.0,0.126]
[1728160165028,0.0327,61837.0,61836.0,0.19069]
[1728160165329,0.0337,61837.0,61836.0,0.19069]
[1728160167422,0.0327,61837.0,61836.0,0.54549]
[1728160167627,0.0467,61837.0,61836.0,0.54649]
[1728160167933,0.231389,61837.0,61836.0,0.03050394]
[1728160168731,0.230389,61837.0,61836.0,0.03050394]
[1728160169036,0.230389,61837.0,61836.0,0.03150394]
[1728160169037,0.894389,61837.0,61836.0,0.03150394]
[1728160174033,0.774389,61837.0,61836.0,0.03150394]
[1728160175131,0.774389,61837.0,61836.0,0.002]
[1728160176034,0.89486805,61837.0,61836.0,0.002]
[1728160176338,0.89486805,61837.0,61836.0,0.00135197]
[1728160176339,1.01486805,61837.0,61836.0,0.00135197]
[1728160178939,0.89486805,61837.0,61836.0,0.00135197]
[1728160179235,1.04016425,61837.0,61836.0,0.00135197]
[1728160179538,1.04016426,61837.0,61836.0,0.00135197]
[1728160182239,0.89486806,61837.0,61836.0,0.00135197]
[1728160183136,0.774389,61837.0,61836.0,0.00135197]
[1728160191348,0.89486805,61837.0,61836.0,0.00135197]
[1728160192041,1.01486805,61837.0,61836.0,0.00135197]
[1728160193550,1.07287167,61837.0,61836.0,0.00091422]
[1728160194053,1.0728745,61837.0,61836.0,0.00091422]
[1728160195642,1.0728745,61837.0,61836.0,0.00358422]
[1728160196051,1.4336745,61837.0,61836.0,0.00358422]
[1728160198142,1.28642813,61837.0,61836.0,0.00358422]
[1728160198542,1.255189,61837.0,61836.0,0.00358422]
[1728160198747,1.28642856,61837.0,61836.0,0.00358422]
[1728160202361,1.28642859,61837.0,61836.0,0.00358422]
[1728160203952,1.28642948,61837.0,61836.0,0.00358422]
[1728160206262,1.43368446,61837.0,61836.0,0.00243002]
[1728160209862,1.07288446,61837.0,61836.0,0.00243002]
[1728160210064,1.43368446,61837.0,61836.0,0.00243002]
[1728160210748,1.07288446,61837.0,61836.0,0.00243002]
[1728160210952,1.43368446,61837.0,61836.0,0.00243002]
[1728160213266,1.255189,61837.0,61836.0,0.00243002]
[1728160213567,2.340349,61837.0,61829.0,0.0596799]
[1728160213766,0.12,61830.0,61829.0,0.0113]
[1728160214064,0.064698,61828.0,61827.0,0.0483799]
[1728160214266,0.032,61829.0,61826.0,0.0483799]
[1728160214456,0.094999,61827.0,61826.0,0.0483799]
[1728160215361,0.0647,61826.0,61825.0,0.0483799]
[1728160215556,0.0647,61826.0,61824.0,0.1130819]
[1728160215757,0.0647,61826.0,61825.0,0.0483799]
[1728160216359,0.0757,61826.0,61825.0,0.001]
[1728160218163,0.0877,61826.0,61825.0,0.001]
[1728160221465,0.0877,61826.0,61825.0,0.0493799]
[1728160222065,0.0877,61826.0,61825.0,0.001]
[1728160228165,0.15855431,61826.0,61825.0,0.001]
[1728160235064,0.09385431,61826.0,61825.0,0.065701]
[1728160235269,0.09385431,61826.0,61825.0,0.550941]
[1728160235471,0.0038,61834.0,61826.0,0.48524]
[1728160235669,0.51207169,61835.0,61833.0,0.12]
[1728160235977,0.51207169,61835.0,61834.0,0.097492]
[1728160236779,0.064689,61838.0,61834.0,0.097492]
[1728160237074,0.064689,61838.0,61837.0,0.12]
[1728160238071,0.065689,61838.0,61837.0,0.12]
[1728160238575,0.06469,61836.0,61834.0,0.15497166]
[1728160238776,0.06469,61836.0,61835.0,0.12]
[1728160240074,0.06469,61836.0,61835.0,0.121]
[1728160240866,0.07669,61836.0,61835.0,0.122]
[1728160243278,0.16593421,61836.0,61835.0,0.122]
[1728160244280,0.16593421,61836.0,61835.0,0.002]
[1728160245583,0.19717386,61836.0,61835.0,0.002]
[1728160251380,0.07669,61836.0,61835.0,0.002]
[1728160259402,0.72669,61836.0,61835.0,0.002]
[1728160263609,0.7579308,61836.0,61835.0,0.002]
[1728160263810,0.72669,61836.0,61835.0,0.002]
[1728160264011,0.75793094,61836.0,61835.0,0.002]
[1728160264411,0.10793094,61836.0,61835.0,0.002]
[1728160265707,0.07669,61836.0,61835.0,0.002]
[1728160265916,0.10793078,61836.0,61835.0,0.002]
[1728160266409,0.19717943,61836.0,61835.0,0.002]
[1728160267604,0.19717943,61836.0,61835.0,0.122]
[1728160269010,0.19717769,61836.0,61835.0,0.122]
[1728160273408,0.10793064,61836.0,61835.0,0.122]
[1728160273707,0.10793016,61836.0,61835.0,0.122]
[1728160274802,0.07669,61836.0,61835.0,0.122]
[1728160280616,0.07669,61836.0,61835.0,0.186691]
[1728160281312,0.10792941,61836.0,61835.0,0.186691]
[1728160281620,0.1475328,61836.0,61835.0,0.186691]
[1728160282912,0.19717283,61836.0,61835.0,0.186691]
[1728160283308,0.19717266,61836.0,61835.0,0.186691]
[1728160285612,0.08284262,61836.0,61835.0,0.186691]
[1728160288417,0.012,61836.0,61835.0,0.186691]
[1728160289707,0.012,61836.0,61835.0,0.547491]
[1728160292924,0.0038,61845.0,61835.0,1.632651]
[1728160293219,0.0038,61845.0,61844.0,0.425482]
[1728160293423,0.07174313,61849.0,61845.0,0.06468]
[1728160293424,0.06794313,61849.0,61845.0,0.06468]
[1728160293617,0.06710313,61849.0,61848.0,0.12]
[1728160294616,0.00242613,61849.0,61848.0,0.184677]
[1728160295513,0.00242613,61849.0,61848.0,0.198677]
[1728160296223,0.00242613,61849.0,61848.0,0.212677]
[1728160296427,0.1228774,61849.0,61848.0,0.14339798]
[1728160297118,0.1875534,61849.0,61848.0,0.148]
[1728160297312,0.1875534,61849.0,61848.0,0.028]
[1728160297519,0.1875534,61849.0,61848.0,0.148]
[1728160302332,0.18756283,61849.0,61848.0,0.148]
[1728160303533,0.06710213,61849.0,61848.0,0.148]
[1728160317637,0.06710213,61849.0,61848.0,0.212677]
[1728160318044,0.00242613,61849.0,61848.0,0.212677]
[1728160318636,0.0321,61852.0,61851.0,0.064674]
[1728160318637,0.20944263,61852.0,61851.0,0.064674]
[1728160318947,0.24067367,61852.0,61851.0,0.184674]
[1728160319247,0.15255068,61852.0,61851.0,0.184674]
[1728160320037,0.15255068,61852.0,61851.0,0.198674]
[1728160320235,0.15255068,61852.0,61851.0,0.212674]
[1728160320644,0.15255068,61852.0,61851.0,0.14487258]
[1728160320645,0.21722368,61852.0,61851.0,0.14487258]
[1728160321151,0.21722368,61852.0,61851.0,0.20954658]
[1728160323655,0.21722368,61852.0,61851.0,0.02487258]
[1728160324156,0.86722368,61852.0,61851.0,0.02487258]
[1728160324354,0.92521235,61852.0,61851.0,0.02487258]
[1728160325546,0.81759682,61852.0,61851.0,0.02487258]
[1728160333562,0.86054664,61852.0,61851.0,0.12]
[1728160334559,0.92522236,61852.0,61851.0,0.12]
[1728160339560,0.92522573,61852.0,61851.0,0.12]
[1728160340663,0.7780065,61852.0,61851.0,0.12]
[1728160344461,0.77800637,61852.0,61851.0,0.12]
[1728160345062,0.71333337,61852.0,61848.0,0.12]
[1728160345366,0.064676,61849.0,61848.0,0.12]
[1728160345566,0.09590937,61849.0,61848.0,0.12]
[1728160346163,0.09590937,61849.0,61848.0,0.134]
[1728160346469,0.064676,61849.0,61848.0,0.148]
[1728160347061,0.064676,61849.0,61848.0,0.5088]
[1728160347260,0.064676,61849.0,61848.0,0.148]
[1728160347467,0.064676,61849.0,61848.0,0.5088]
[1728160347756,0.065676,61849.0,61848.0,0.559477]
[1728160347956,0.066676,61849.0,61848.0,0.573477]
[1728160349667,0.09790835,61849.0,61848.0,0.573477]
[1728160350562,0.09790835,61849.0,61848.0,0.212677]
[1728160352160,0.09790835,61849.0,61848.0,0.092677]
[1728160352461,0.09790835,61849.0,61848.0,0.212677]
[1728160352653,0.09790835,61849.0,61848.0,0.148]
[1728160353963,0.09790965,61849.0,61848.0,0.148]
[1728160354961,0.09790965,61849.0,61848.0,0.028]
[1728160355163,0.0979094,61849.0,61848.0,0.028]
[1728160355467,0.2179094,61849.0,61848.0,0.028]
[1728160355669,0.30714205,61849.0,61848.0,0.028]
[1728160357265,0.33679254,61849.0,61848.0,0.028]
[1728160358066,0.69759254,61849.0,61848.0,0.028]
[1728160358266,0.75558959,61849.0,61848.0,0.028]
[1728160358670,0.75559233,61849.0,61848.0,0.028]
[1728160363563,0.60836224,61849.0,61848.0,0.028]
[1728160366978,1.13300269,61849.0,61848.0,0.028]
[1728160367177,0.064683,61843.0,61842.0,0.0113]
[1728160367380,0.064683,61843.0,61838.0,0.064688]
[1728160367381,0.064687,61839.0,61838.0,0.064688]
[1728160368274,0.064687,61839.0,61838.0,0.184688]
[1728160369282,0.064687,61839.0,61838.0,0.198688]
[1728160369283,0.065687,61839.0,61838.0,0.198688]
[1728160370676,0.066687,61839.0,61838.0,0.198688]
[1728160371185,0.13752582,61839.0,61838.0,0.198688]
[1728160378377,0.13752618,61839.0,61838.0,0.198688]
[1728160378581,0.066687,61839.0,61838.0,0.198688]
[1728160384783,0.186687,61839.0,61838.0,0.014]
[1728160386899,0.30716817,61839.0,61838.0,0.014]
[1728160388394,0.33593384,61839.0,61838.0,0.014]
[1728160388597,0.18716817,61839.0,61838.0,0.014]
[1728160388789,0.30716817,61839.0,61838.0,0.014]
[1728160392390,0.45260076,61839.0,61838.0,0.014]
[1728160393686,0.30716817,61839.0,61838.0,0.014]
[1728160394098,0.46875994,61839.0,61838.0,0.014]
[1728160394306,0.186687,61839.0,61838.0,0.014]
[1728160406305,0.186687,61839.0,61838.0,0.01667]
[1728160409196,0.30717154,61839.0,61838.0,0.01667]
[1728160409406,0.48497099,61839.0,61838.0,0.01667]
[1728160410902,0.30717154,61839.0,61838.0,0.01667]
[1728160412806,0.30717154,61839.0,61819.0,0.0313]
[1728160412807,0.064693,61833.0,61819.0,0.064708]
[1728160413104,0.184707,61820.0,61819.0,0.064708]
[1728160413308,0.25555073,61820.0,61819.0,0.064708]
[1728160413502,0.25555073,61820.0,61815.0,0.12]
[1728160413503,0.19084373,61820.0,61815.0,0.12]
[1728160413700,0.064709,61818.0,61817.0,0.06471]
[1728160413901,0.13555273,61818.0,61817.0,0.06471]
[1728160414406,0.07084373,61818.0,61817.0,0.06471]
[1728160414603,0.07084373,61818.0,61816.0,0.064711]
[1728160414808,0.07084373,61817.0,61816.0,0.064711]
[1728160415105,0.07084373,61817.0,61815.0,0.14976535]
[1728160415304,0.03124699,61816.0,61815.0,0.21447735]
[1728160415506,0.03124699,61816.0,61815.0,0.57527735]
[1728160416101,0.012,61818.0,61815.0,0.51056535]
[1728160416301,0.012,61818.0,61817.0,0.06471]
[1728160416699,0.004,61818.0,61817.0,0.06471]
[1728160417011,0.064708,61819.0,61817.0,0.06471]
[1728160417208,0.064708,61819.0,61818.0,0.04845106]
[1728160417512,0.064708,61819.0,61817.0,0.11316106]
[1728160417709,0.004,61818.0,61817.0,0.11316106]
[1728160417910,0.012,61818.0,61817.0,0.11316106]
[1728160418407,0.008,61818.0,61817.0,0.11316106]
[1728160419305,0.076708,61819.0,61817.0,0.11316106]
[1728160419904,0.006,61818.0,61817.0,0.11316106]
[1728160420514,0.070708,61819.0,61817.0,0.06471]
[1728160420708,0.004,61818.0,61817.0,0.06471]
[1728160421114,0.01,61818.0,61817.0,0.06471]
[1728160421613,0.006,61818.0,61817.0,0.06471]
[1728160422911,0.068708,61819.0,61817.0,0.06471]
[1728160423105,0.004,61818.0,61817.0,0.06471]
[1728160423816,0.01,61818.0,61817.0,0.06471]
[1728160424013,0.006,61818.0,61817.0,0.06471]
[1728160425118,0.006,61818.0,61816.0,0.3608]
[1728160425119,0.06471,61817.0,61816.0,0.3608]
[1728160425421,0.18471,61817.0,61816.0,0.3608]
[1728160426421,0.18971,61817.0,61816.0,0.3608]
[1728160428018,0.19271,61817.0,61816.0,0.3608]
[1728160429013,0.07271,61817.0,61816.0,0.4808]
[1728160429215,0.07271,61817.0,61816.0,0.545511]
[1728160429216,0.008,61817.0,61816.0,0.545511]
[1728160430718,0.008,61817.0,61812.0,0.02910219]
[1728160430719,0.008,61817.0,61807.0,0.0075]
[1728160431021,0.008,61817.0,61804.0,0.3608]
[1728160431022,0.064721,61806.0,61805.0,0.38974586]
[1728160431317,0.064721,61806.0,61805.0,0.3608]
[1728160431318,0.834721,61806.0,61805.0,0.3608]
[1728160431920,0.834721,61806.0,61805.0,0.40919273]
[1728160432621,0.835721,61806.0,61805.0,0.40919273]
[1728160433033,0.835721,61806.0,61805.0,0.3608]
[1728160433422,0.835721,61806.0,61805.0,0.40918255]
[1728160433622,0.185721,61806.0,61805.0,0.3608]
[1728160434022,0.001,61806.0,61805.0,0.59390455]
[1728160434326,0.002,61806.0,61805.0,0.546522]
[1728160435625,0.002,61806.0,61805.0,0.59489656]
[1728160435822,0.0113,61811.0,61805.0,1.61557456]
[1728160436118,0.0113,61811.0,61810.0,0.064717]
[1728160436318,0.064714,61814.0,61812.0,0.064715]
[1728160436722,0.064714,61814.0,61812.0,0.184715]
[1728160437530,0.064714,61814.0,61812.0,0.064715]
[1728160437836,0.064714,61814.0,61812.0,0.065715]
[1728160438727,0.064714,61813.0,61812.0,0.001]
[1728160438935,0.095514,61813.0,61812.0,0.001]
[1728160439133,0.125514,61813.0,61812.0,0.001]
[1728160439930,0.126514,61813.0,61812.0,0.001]
[1728160447038,0.065714,61813.0,61812.0,0.001]
[1728160448830,0.02523865,61813.0,61812.0,0.001]
[1728160449032,0.12,61815.0,61812.0,0.001]
[1728160449343,0.184712,61815.0,61814.0,0.06460747]
[1728160450046,0.064713,61814.0,61811.0,0.145557]
[1728160450248,0.064713,61814.0,61812.0,0.001]
[1728160452033,0.064713,61814.0,61812.0,0.065715]
[1728160452445,0.064713,61814.0,61812.0,0.145557]
[1728160452845,0.064713,61814.0,61812.0,0.064715]
[1728160453142,0.064713,61814.0,61812.0,0.145557]
[1728160453347,0.064713,61814.0,61812.0,0.065715]
[1728160453348,0.065713,61814.0,61812.0,0.065715]
[1728160457751,0.001,61814.0,61813.0,0.184714]
[1728160458252,0.001,61814.0,61813.0,1.270034]
[1728160458460,0.001,61814.0,61813.0,1.334934]
[1728160458950,0.002,61814.0,61813.0,1.334934]
[1728160459252,0.0113,61819.0,61818.0,0.064709]
[1728160459453,0.0318,61822.0,61818.0,0.064709]
[1728160459454,0.0318,61822.0,61820.0,0.064706]
[1728160459637,0.0318,61822.0,61818.0,0.12]
[1728160459837,0.0318,61822.0,61821.0,0.064706]
[1728160460451,0.0408,61822.0,61821.0,0.064706]
[1728160461945,0.0318,61822.0,61821.0,0.064706]
[1728160462147,0.0418,61822.0,61821.0,0.064706]
[1728160462453,0.0498,61822.0,61821.0,0.064706]
[1728160462853,0.0498,61822.0,61821.0,0.09366478]
[1728160465249,0.114505,61822.0,61821.0,0.02895878]
[1728160465450,0.114505,61822.0,61820.0,0.3608]
[1728160465973,0.234505,61822.0,61820.0,0.3608]
[1728160466458,0.106505,61822.0,61821.0,0.3608]
[1728160466652,0.112505,61822.0,61821.0,0.3608]
[1728160467255,0.112505,61822.0,61819.0,0.184708]
[1728160467457,0.112505,61822.0,61821.0,0.3608]
[1728160467765,0.112505,61822.0,61819.0,0.184708]
[1728160467953,0.105505,61822.0,61821.0,0.3608]
[1728160468149,0.113505,61822.0,61821.0,0.3608]
[1728160468351,0.104505,61822.0,61821.0,0.3608]
[1728160468562,0.114505,61822.0,61821.0,0.3608]
[1728160468855,0.112505,61822.0,61821.0,0.3608]
[1728160469450,0.112505,61822.0,61819.0,0.21355206]
[1728160469661,0.114505,61822.0,61821.0,0.3608]
[1728160469861,0.114505,61822.0,61819.0,0.21355206]
[1728160470055,0.114505,61822.0,61821.0,0.3608]
[1728160471362,0.112505,61822.0,61821.0,0.3608]
[1728160471564,0.102505,61822.0,61821.0,0.3608]
[1728160471760,0.110505,61822.0,61821.0,0.3608]
[1728160471959,0.112505,61822.0,61821.0,0.3608]
[1728160472160,0.114505,61822.0,61821.0,0.3608]
[1728160473957,0.114505,61822.0,61819.0,0.21355206]
[1728160474163,0.114505,61822.0,61821.0,0.3608]
[1728160474369,0.114505,61822.0,61819.0,0.21355206]
[1728160474563,0.114505,61822.0,61821.0,0.3608]
[1728160474952,0.106505,61822.0,61821.0,0.3608]
[1728160475155,0.112505,61822.0,61821.0,0.3608]
[1728160475853,0.114505,61822.0,61821.0,0.3608]
[1728160476464,0.2600147,61822.0,61821.0,0.3608]
[1728160477164,0.38052297,61822.0,61821.0,0.3608]
[1728160477967,0.38052297,61822.0,61819.0,0.21355206]
[1728160478166,0.2600147,61822.0,61821.0,0.3608]
[1728160478665,0.380523,61822.0,61819.0,0.21355206]
[1728160478868,0.1205083,61821.0,61819.0,0.21355206]
[1728160479069,0.1205083,61821.0,61820.0,0.3608]
[1728160479263,0.266018,61821.0,61820.0,0.3608]
[1728160479666,0.26602028,61821.0,61820.0,0.3608]
[1728160480872,0.27202028,61821.0,61820.0,0.3608]
[1728160481560,0.13651058,61821.0,61820.0,0.3608]
[1728160481968,0.20121658,61821.0,61820.0,0.3608]
[1728160482567,0.42759403,61821.0,61820.0,0.3608]
[1728160482966,0.26591658,61821.0,61820.0,0.3608]
[1728160483369,0.145406,61821.0,61820.0,0.3608]
[1728160485774,0.145406,61821.0,61819.0,0.04847418]
[1728160485775,0.064707,61820.0,61819.0,0.40927418]
[1728160486968,0.070707,61820.0,61819.0,0.40927418]
[1728160487477,0.078707,61820.0,61819.0,0.3608]
[1728160488079,0.064708,61819.0,61818.0,0.02897387]
[1728160488278,0.064708,61819.0,61818.0,0.3608]
[1728160490264,0.069708,61819.0,61818.0,0.3608]
[1728160491168,0.076708,61819.0,61818.0,0.3608]
[1728160494375,0.076708,61819.0,61817.0,0.04852561]
[1728160494687,0.076708,61819.0,61818.0,0.3608]
[1728160495381,0.076708,61819.0,61817.0,0.11323561]
[1728160495686,0.075708,61819.0,61818.0,0.3608]
[1728160496295,0.074708,61819.0,61818.0,0.3608]
[1728160497002,0.075708,61819.0,61818.0,0.3608]
[1728160497188,0.076708,61819.0,61818.0,0.3608]
[1728160498390,0.076708,61819.0,61817.0,0.11323561]
[1728160498587,0.076708,61819.0,61818.0,0.3608]
[1728160498987,0.19722173,61819.0,61818.0,0.425509]
[1728160499393,0.19222173,61819.0,61818.0,0.425509]
[1728160499589,0.19622173,61819.0,61818.0,0.425509]
[1728160500301,0.19722173,61819.0,61818.0,0.425509]
[1728160500496,0.13251373,61819.0,61818.0,0.425509]
[1728160501092,0.17360904,61819.0,61818.0,0.425509]
[1728160501598,0.13251373,61819.0,61818.0,0.425509]
[1728160502396,0.1325123,61819.0,61818.0,0.425509]
[1728160502800,0.18984519,61819.0,61818.0,0.425509]
[1728160503205,0.31035749,61819.0,61818.0,0.425509]
[1728160503703,0.49506549,61819.0,61818.0,0.425509]
[1728160503909,0.43035749,61819.0,61811.0,0.3608]
[1728160504126,0.34633414,61812.0,61811.0,0.3608]
[1728160504315,0.34633414,61812.0,61806.0,0.0113]
[1728160504316,0.40213144,61812.0,61806.0,0.064721]
[1728160504611,0.12,61807.0,61806.0,0.064721]
[1728160504801,0.20089927,61807.0,61806.0,0.064721]
[1728160505107,0.2405123,61807.0,61806.0,0.064721]
[1728160505409,1.11685144,61807.0,61806.0,0.064721]
[1728160505706,0.9552323,61807.0,61806.0,0.064721]
[1728160506220,1.11768394,61807.0,61806.0,0.066721]
[1728160506399,1.11770747,61807.0,61806.0,0.066721]
[1728160506904,1.11870747,61807.0,61806.0,0.066721]
[1728160507403,0.93345164,61807.0,61806.0,0.066721]
[1728160507911,0.772,61807.0,61806.0,0.066721]
[1728160509108,0.652,61807.0,61806.0,0.066721]
[1728160512212,0.652,61807.0,61806.0,0.002]
[1728160512213,0.83672,61807.0,61806.0,0.002]
[1728160521514,0.83672,61807.0,61797.0,0.0113]
[1728160521515,0.064721,61806.0,61797.0,0.0113]
[1728160521718,2.2182,61807.0,61793.0,0.0113]
[1728160521719,0.18473,61798.0,61793.0,0.0113]
[1728160522018,0.18473,61798.0,61792.0,0.06705982]
[1728160522019,0.064735,61793.0,61792.0,0.00242757]
[1728160524116,0.065735,61793.0,61792.0,0.00242757]
[1728160524511,0.194735,61793.0,61792.0,0.00242757]
[1728160524708,0.202735,61793.0,61792.0,0.00242757]
[1728160528418,0.23399615,61793.0,61792.0,0.00242757]
[1728160536521,0.202735,61793.0,61792.0,0.00242757]
[1728160539623,0.082735,61793.0,61792.0,0.00242757]
[1728160539821,0.202735,61793.0,61792.0,0.00242757]
[1728160551638,0.38767492,61793.0,61792.0,0.00242757]
[1728160551834,0.46861146,61793.0,61792.0,0.00242757]
[1728160553431,0.32330282,61793.0,61792.0,0.00242757]
[1728160554034,0.46876731,61793.0,61792.0,0.00242757]
[1728160557041,0.32330282,61793.0,61792.0,0.00242757]
[1728160558644,0.202735,61793.0,61792.0,0.00242757]
[1728160561553,0.202735,61793.0,61791.0,0.06463225]
[1728160561554,0.138,61793.0,61791.0,0.06463225]
[1728160561757,0.202735,61793.0,61792.0,0.06477606]
[1728160562056,0.202735,61793.0,61790.0,0.3608]
[1728160562057,0.064736,61792.0,61791.0,0.06477606]
[1728160563552,0.073736,61792.0,61791.0,0.06477606]
[1728160563847,0.080736,61792.0,61791.0,0.184737]
[1728160564061,0.016,61792.0,61791.0,0.218037]
[1728160564847,0.016,61792.0,61791.0,0.330179]
[1728160565059,0.016,61792.0,61791.0,0.176879]
[1728160565352,0.136,61792.0,61791.0,0.096037]
[1728160565758,0.200736,61792.0,61791.0,0.096037]
[1728160566259,0.200736,61792.0,61791.0,0.098707]
[1728160566649,0.27162331,61792.0,61791.0,0.098707]
[1728160569362,0.15162678,61792.0,61791.0,0.098707]
[1728160570259,0.20130055,61792.0,61791.0,0.098707]
[1728160571456,0.20130006,61792.0,61791.0,0.098707]
[1728160573553,0.080736,61792.0,61791.0,0.098707]
[1728160575661,0.080736,61792.0,61791.0,0.03397]
[1728160575959,0.080736,61792.0,61791.0,0.00267]
[1728160579754,0.080736,61792.0,61791.0,0.06740988]
[1728160579961,0.200736,61792.0,61791.0,0.06740988]
[1728160580160,0.200736,61792.0,61791.0,0.00267]
[1728160588664,0.3213023,61792.0,61791.0,0.00267]
[1728160588865,0.48286247,61792.0,61791.0,0.00267]
[1728160589074,0.48286247,61792.0,61791.0,0.36347]
[1728160589376,0.3213023,61792.0,61791.0,0.36347]
[1728160589576,0.48289678,61792.0,61791.0,0.36347]
[1728160590774,0.48289678,61792.0,61791.0,0.00267]
[1728160591279,0.48289678,61792.0,61791.0,0.36347]
[1728160593376,0.48289736,61792.0,61791.0,0.36347]
[1728160594377,0.97130288,61792.0,61791.0,0.36347]
[1728160594777,1.00300288,61792.0,61791.0,0.36347]
[1728160596475,1.16459736,61792.0,61791.0,0.36347]
[1728160596674,0.882436,61792.0,61791.0,0.36347]
[1728160600280,0.882436,61792.0,61791.0,0.00267]
[1728160600482,0.882436,61792.0,61791.0,0.36347]
[1728160603883,0.91369743,61792.0,61791.0,0.36347]
[1728160604282,0.91369743,61792.0,61791.0,0.00267]
[1728160604484,0.91369743,61792.0,61791.0,0.3608]
[1728160604684,0.95332907,61792.0,61791.0,0.3608]
[1728160606287,0.88859307,61792.0,61788.0,0.02901975]
[1728160606479,0.064739,61789.0,61786.0,0.064742]
[1728160606685,0.09600143,61788.0,61786.0,0.09360351]
[1728160606879,0.03126143,61787.0,61786.0,0.09360351]
[1728160607185,0.03126143,61787.0,61786.0,0.45440351]
[1728160607886,0.06474,61788.0,61786.0,0.45440351]
[1728160608194,0.03326166,61787.0,61786.0,0.09360351]
[1728160608999,0.09800266,61787.0,61786.0,0.02886151]
[1728160609195,0.09800266,61787.0,61785.0,0.12]
[1728160609493,0.03126166,61786.0,61785.0,0.12]
[1728160611190,0.03226166,61786.0,61785.0,0.12]
[1728160611687,0.001,61786.0,61785.0,0.12]
[1728160611888,0.065742,61786.0,61785.0,0.12]
[1728160612195,0.064743,61785.0,61784.0,0.833922]
[1728160612394,0.064743,61785.0,61784.0,0.7216]
[1728160612785,0.064743,61785.0,61784.0,0.8416]
[1728160612987,0.064743,61785.0,61784.0,1.04241483]
[1728160614189,0.066743,61785.0,61784.0,1.04241483]
[1728160618694,0.066743,61785.0,61784.0,0.8416]
[1728160619295,0.10637641,61785.0,61784.0,0.8416]
[1728160619492,0.13763951,61785.0,61784.0,0.8416]
[1728160619704,0.13763951,61785.0,61784.0,0.7216]
[1728160624803,0.064744,61784.0,61783.0,0.14919094]
[1728160624992,0.0960071,61784.0,61783.0,0.14919094]
[1728160625389,0.0960071,61784.0,61783.0,0.50999094]
[1728160625601,0.09600716,61784.0,61783.0,0.38999094]
[1728160626404,0.09700716,61784.0,61783.0,0.38999094]
[1728160626791,0.065744,61784.0,61783.0,0.50989257]
[1728160630298,0.065744,61784.0,61783.0,0.38999094]
[1728160630602,0.065744,61784.0,61783.0,0.50990414]
[1728160631691,0.065744,61784.0,61783.0,0.50990224]
[1728160632901,0.065744,61784.0,61783.0,0.14910224]
[1728160633098,0.065744,61784.0,61783.0,0.50990224]
[1728160635203,0.065744,61784.0,61783.0,0.5098843]
[1728160635906,0.065744,61784.0,61783.0,0.59084671]
[1728160636606,0.065744,61784.0,61783.0,0.59093309]
[1728160637211,0.065744,61784.0,61783.0,0.23013309]
[1728160639306,0.065744,61784.0,61783.0,0.11015335]
[1728160639505,0.065744,61784.0,61783.0,0.2301295]
[1728160639813,0.065744,61784.0,61783.0,0.20093856]
[1728160640315,0.065744,61784.0,61783.0,0.08096241]
[1728160640508,0.065744,61784.0,61782.0,0.08096241]
[1728160640509,0.064745,61783.0,61782.0,0.08096241]
[1728160640717,0.096845,61783.0,61782.0,0.20096414]
[1728160641816,0.16774557,61783.0,61781.0,0.39007839]
[1728160642012,0.07090057,61782.0,61781.0,0.39007839]
[1728160642614,0.03126489,61782.0,61781.0,0.39007839]
[1728160642820,0.07090006,61782.0,61781.0,0.39007839]
[1728160643806,0.03126489,61782.0,61781.0,0.39007839]
[1728160644109,0.07090006,61782.0,61781.0,0.39007839]
[1728160644314,0.03126489,61782.0,61781.0,0.39007839]
[1728160645002,0.25564709,61782.0,61781.0,0.39007839]
[1728160645612,0.13564709,61782.0,61781.0,0.39007839]
[1728160648519,0.13564709,61782.0,61781.0,0.45482639]
[1728160649024,0.064747,61782.0,61781.0,0.45482639]
[1728160649528,0.064747,61782.0,61781.0,0.5357888]
[1728160649920,0.064747,61782.0,61781.0,0.45482639]
[1728160651534,0.0321,61783.0,61781.0,0.5357888]
[1728160651727,0.0321,61783.0,61781.0,0.39007839]
[1728160651922,0.0321,61783.0,61782.0,0.064747]
[1728160656826,0.0633646,61783.0,61782.0,0.064747]
[1728160657020,0.07173532,61783.0,61782.0,0.064747]
[1728160657226,0.10299992,61783.0,61782.0,0.064747]
[1728160662228,0.0633646,61783.0,61782.0,0.064747]
[1728160663837,0.0321,61783.0,61782.0,0.18468214]
[1728160667139,0.0321,61783.0,61782.0,0.54548214]
[1728160667530,0.0321,61783.0,61782.0,0.62642371]
[1728160668432,0.0321,61783.0,61782.0,0.425547]
[1728160669245,0.0321,61783.0,61782.0,0.44174157]
[1728160669436,0.096845,61783.0,61782.0,0.44174157]
[1728160670743,0.096845,61783.0,61782.0,0.3608]
[1728160670936,0.096845,61783.0,61782.0,0.44174157]
[1728160671345,0.096845,61783.0,61782.0,0.36347]
[1728160671652,0.096845,61783.0,61782.0,0.44441157]
[1728160671847,0.096845,61783.0,61782.0,0.36347]
[1728160675449,0.096845,61783.0,61782.0,0.00267]
[1728160675940,0.096845,61783.0,61782.0,0.36347]
[1728160678349,0.096845,61783.0,61782.0,0.00267]
[1728160678649,0.096845,61783.0,61782.0,0.36347]
[1728160678854,0.12810937,61783.0,61782.0,0.00267]
[1728160679048,0.12810937,61783.0,61782.0,0.36347]
[1728160680854,0.12810937,61783.0,61782.0,0.00267]
[1728160681055,0.12810937,61783.0,61782.0,0.36347]
[1728160681748,0.12810937,61783.0,61782.0,0.00267]